fUST/lending_fUST_20250408
["ID","MTS","AMOUNT","RATE_DAILY","PERIOD"]
[357400529,1744044640302,-500.0,0.00027397,7]
[357400530,1744044640313,-500.0,0.00027397,7]
[357400531,1744044640323,-500.0,0.00027397,7]
[357400532,1744044640332,-500.0,0.00027397,7]
[357400533,1744044640342,-500.0,0.00027397,7]
[357400534,1744044640352,-500.0,0.00027397,7]
[357400535,1744044640362,-500.0,0.00027397,7]
[357400536,1744044640373,-500.0,0.00027397,7]
[357400537,1744044640384,-500.0,0.00027397,7]
[357400538,1744044640394,-500.0,0.00027397,7]
[357400539,1744044640404,-500.0,0.00027397,7]
[357400540,1744044640414,-500.0,0.00027397,7]
[357400541,1744044640424,-500.0,0.00027397,7]
[357400542,1744044640435,-526.59080919,0.00027397,7]
[357400543,1744044640445,-500.0,0.00027397,7]
[357400545,1744044640454,-500.0,0.00027397,7]
[357400547,1744044640464,-500.0,0.00027397,7]
[357400549,1744044640474,-500.0,0.00027397,7]
[357400550,1744044640483,-500.0,0.00027397,7]
[357400552,1744044640494,-500.0,0.00027397,7]
[357400555,1744044640504,-500.0,0.00027397,7]
[357400557,1744044640514,-500.0,0.00027397,7]
[357400559,1744044640524,-500.0,0.00027397,7]
[357400560,1744044640534,-500.0,0.00027397,7]
[357400562,1744044640544,-500.0,0.00027397,7]
[357400564,1744044640554,-500.0,0.00027397,7]
[357400566,1744044640564,-500.0,0.00027397,7]
[357400569,1744044640575,-507.33673561,0.00027397,7]
[357400570,1744044640585,-500.0,0.00027397,7]
[357400573,1744044640595,-500.0,0.00027397,7]
[357400575,1744044640605,-562.86,0.00027397,7]
[357400576,1744044640616,-500.0,0.00027397,7]
[357400579,1744044640631,-307.56352425,0.00027397,7]
[357400581,1744044640644,-500.0,0.00027397,7]
[357400583,1744044640654,-500.0,0.00027397,7]
[357400585,1744044640664,-500.0,0.00027397,7]
[357400587,1744044640675,-500.0,0.00027397,7]
[357400589,1744044640684,-500.0,0.00027397,7]
[357400591,1744044640694,-500.0,0.00027397,7]
[357400593,1744044640704,-500.0,0.00027397,7]
[357400595,1744044640714,-500.0,0.00027397,7]
[357400597,1744044640724,-500.0,0.00027397,7]
[357400599,1744044640733,-500.0,0.00027397,7]
[357400601,1744044640743,-500.0,0.00027397,7]
[357400603,1744044640753,-500.0,0.00027397,7]
[357400605,1744044640762,-500.0,0.00027397,7]
[357400607,1744044640772,-500.0,0.00027397,7]
[357400609,1744044640781,-500.0,0.00027397,7]
[357400611,1744044640790,-500.0,0.00027397,7]
[357400613,1744044640799,-500.0,0.00027397,7]
[357400615,1744044640809,-500.0,0.00027397,7]
[357400617,1744044640818,-500.0,0.00027397,7]
[357400619,1744044640827,-500.0,0.00027397,7]
[357400621,1744044640836,-737.32,0.00027397,7]
[357400622,1744044640846,-500.0,0.00027397,7]
[357400624,1744044640855,-500.0,0.00027397,7]
[357400626,1744044640864,-500.0,0.00027397,7]
[357400628,1744044640875,-646.39,0.00027397,7]
[357400630,1744044640885,-500.0,0.00027397,7]
[357400633,1744044640895,-500.0,0.00027397,7]
[357400634,1744044640904,-500.0,0.00027397,7]
[357400636,1744044640914,-500.0,0.00027397,7]
[357400638,1744044640923,-500.0,0.00027397,7]
[357400640,1744044640932,-575.96,0.00027397,7]
[357400660,1744044641111,-500.0,0.00027397,7]
[357400662,1744044641122,-500.0,0.00027397,7]
[357400664,1744044641132,-500.0,0.00027397,7]
[357400666,1744044641142,-500.0,0.00027397,7]
[357400668,1744044641152,-500.0,0.00027397,7]
[357400670,1744044641162,-500.0,0.00027397,7]
[357400672,1744044641172,-500.0,0.00027397,7]
[357400674,1744044641181,-500.0,0.00027397,7]
[357400676,1744044641191,-500.0,0.00027397,7]
[357400679,1744044641201,-500.0,0.00027397,7]
[357400681,1744044641211,-500.0,0.00027397,7]
[357400683,1744044641221,-500.0,0.00027397,7]
[357400685,1744044641232,-504.68,0.00027397,7]
[357400687,1744044641241,-500.0,0.00027397,7]
[357400689,1744044641251,-500.0,0.00027397,7]
[357400691,1744044641261,-500.0,0.00027397,7]
[357400693,1744044641270,-581.99222784,0.00027397,7]
[357400695,1744044641280,-500.0,0.00027397,7]
[357400697,1744044641290,-500.0,0.00027397,7]
[357400699,1744044641299,-987.94,0.00027397,7]
[357400701,1744044641309,-500.0,0.00027397,7]
[357400703,1744044641319,-500.0,0.00027397,7]
[357400705,1744044641330,-711.04,0.00027397,7]
[357400707,1744044641340,-500.0,0.00027397,7]
[357400709,1744044641350,-500.0,0.00027397,7]
[357400711,1744044641359,-500.0,0.00027397,7]
[357400713,1744044641369,-571.82,0.00027397,7]
[357400715,1744044641380,-500.0,0.00027397,7]
[357400717,1744044641390,-500.0,0.00027397,7]
[357400719,1744044641400,-500.0,0.00027397,7]
[357400722,1744044641410,-500.0,0.00027397,7]
[357400724,1744044641420,-500.0,0.00027397,7]
[357400726,1744044641429,-500.0,0.00027397,7]
[357400728,1744044641439,-500.0,0.00027397,7]
[357400730,1744044641449,-500.0,0.00027397,7]
[357400732,1744044641459,-536.86,0.00027397,7]
[357400734,1744044641469,-500.0,0.00027397,7]
[357400736,1744044641479,-500.0,0.00027397,7]
[357400738,1744044641490,-500.0,0.00027397,7]
[357400740,1744044641500,-500.0,0.00027397,7]
[357400742,1744044641509,-661.36,0.00027397,7]
[357400744,1744044641519,-806.25,0.00027397,7]
[357400746,1744044641528,-520.54312149,0.00027397,7]
[357400748,1744044641538,-500.0,0.00027397,7]
[357400750,1744044641547,-521.98,0.00027397,7]
[357400752,1744044641557,-500.0,0.00027397,7]
[357400754,1744044641567,-1644.55,0.00027397,7]
[357400756,1744044641577,-500.0,0.00027397,7]
[357400758,1744044641587,-500.0,0.00027397,7]
[357400760,1744044641596,-500.0,0.00027397,7]
[357400762,1744044641605,-500.0,0.00027397,7]
[357400764,1744044641615,-500.0,0.00027397,7]
[357400766,1744044641625,-500.0,0.00027397,7]
[357400768,1744044641636,-317.7539458,0.00027397,7]
[357400770,1744044641646,-500.0,0.00027397,7]
[357400771,1744044641656,-182.25966934,0.00027397,7]
[357400773,1744044641666,-539.67,0.00027397,7]
[357400776,1744044641677,-512.38,0.00027397,7]
[357400778,1744044641688,-2264.06,0.00027397,7]
[357400780,1744044641698,-500.0,0.00027397,7]
[357400782,1744044641708,-998.69,0.00027397,7]
[357400784,1744044641721,-500.0,0.00027397,7]
[357400786,1744044641730,-506.16650917,0.00027397,7]
[357400788,1744044641739,-500.0,0.00027397,7]
[357400790,1744044641749,-500.0,0.00027397,7]
[357400792,1744044641759,-513.55612192,0.00027397,7]
[357400794,1744044641769,-500.0,0.00027397,7]
[357400796,1744044641779,-500.0,0.00027397,7]
[357400798,1744044641788,-500.0,0.00027397,7]
[357400800,1744044641798,-500.0,0.00027397,7]
[357400802,1744044641808,-177.98,0.00027397,7]
[357400804,1744044641817,-1059.26,0.00027397,7]
[357400806,1744044641827,-500.0,0.00027397,7]
[357400808,1744044641836,-500.0,0.00027397,7]
[357400810,1744044641846,-500.0,0.00027397,7]
[357400812,1744044641856,-500.0,0.00027397,7]
[357400814,1744044641865,-500.0,0.00027397,7]
[357400816,1744044641875,-503.6316829,0.00027397,7]
[357400818,1744044641885,-1028.96,0.00027397,7]
[357400821,1744044641895,-703.33,0.00027397,7]
[357400823,1744044641906,-500.0,0.00027397,7]
[357400825,1744044641915,-500.0,0.00027397,7]
[357400827,1744044641925,-500.0,0.00027397,7]
[357400829,1744044641935,-526.46,0.00027397,7]
[357400831,1744044641944,-781.97,0.00027397,7]
[357400833,1744044641954,-778.5,0.00027397,7]
[357400835,1744044641963,-500.0,0.00027397,7]
[357400837,1744044641972,-500.0,0.00027397,7]
[357400839,1744044641982,-500.0,0.00027397,7]
[357400841,1744044641991,-500.0,0.00027397,7]
[357400843,1744044642000,-500.0,0.00027397,7]
[357400845,1744044642010,-500.0,0.00027397,7]
[357400847,1744044642020,-505.7352489,0.00027397,7]
[357400849,1744044642030,-505.213239,0.00027397,7]
[357400851,1744044642040,-500.0,0.00027397,7]
[357400853,1744044642050,-500.0,0.00027397,7]
[357400855,1744044642059,-517.27134391,0.00027397,7]
[357400857,1744044642069,-1207.24,0.00027397,7]
[357400858,1744044642078,-500.0,0.00027397,7]
[357400861,1744044642088,-609.33939701,0.00027397,7]
[357400863,1744044642098,-714.57,0.00027397,7]
[357400865,1744044642107,-500.0,0.00027397,7]
[357400867,1744044642116,-500.0,0.00027397,7]
[357400869,1744044642127,-500.0,0.00027397,7]
[357400871,1744044642136,-500.0,0.00027397,7]
[357400873,1744044642145,-500.0,0.00027397,7]
[357400875,1744044642155,-500.0,0.00027397,7]
[357400877,1744044642165,-500.0,0.00027397,7]
[357400879,1744044642175,-500.0,0.00027397,7]
[357400881,1744044642185,-500.0,0.00027397,7]
[357400883,1744044642194,-500.0,0.00027397,7]
[357400885,1744044642203,-500.0,0.00027397,7]
[357400887,1744044642213,-500.0,0.00027397,7]
[357400889,1744044642223,-539.89,0.00027397,7]
[357400891,1744044642234,-500.0,0.00027397,7]
[357400893,1744044642244,-500.0,0.00027397,7]
[357400895,1744044642254,-567.41,0.00027397,7]
[357400897,1744044642263,-500.0,0.00027397,7]
[357400899,1744044642273,-500.0,0.00027397,7]
[357400901,1744044642283,-578.53,0.00027397,7]
[357400903,1744044642292,-500.0,0.00027397,7]
[357400905,1744044642302,-500.0,0.00027397,7]
[357400907,1744044642312,-500.0,0.00027397,7]
[357400909,1744044642322,-500.0,0.00027397,7]
[357400911,1744044642332,-544.74,0.00027397,7]
[357400913,1744044642342,-500.0,0.00027397,7]
[357400915,1744044642351,-501.8712101,0.00027397,7]
[357400917,1744044642360,-500.0,0.00027397,7]
[357400919,1744044642370,-555.17660642,0.00027397,7]
[357400921,1744044642382,-500.0,0.00027397,7]
[357400923,1744044642392,-500.0,0.00027397,7]
[357400925,1744044642402,-761.52,0.00027397,7]
[357400927,1744044642411,-500.0,0.00027397,7]
[357400929,1744044642421,-500.0,0.00027397,7]
[357400931,1744044642431,-500.0,0.00027397,7]
[357400933,1744044642441,-847.22,0.00027397,7]
[357400936,1744044642451,-500.0,0.00027397,7]
[357400938,1744044642462,-503.19015054,0.00027397,7]
[357400940,1744044642472,-500.0,0.00027397,7]
[357400942,1744044642483,-500.0,0.00027397,7]
[357400944,1744044642494,-500.0,0.00027397,7]
[357400946,1744044642504,-500.0,0.00027397,7]
[357400948,1744044642514,-500.0,0.00027397,7]
[357400950,1744044642523,-1093.63,0.00027397,7]
[357400952,1744044642533,-815.42,0.00027397,7]
[357400954,1744044642543,-500.0,0.00027397,7]
[357400956,1744044642553,-500.0,0.00027397,7]
[357400958,1744044642562,-500.0,0.00027397,7]
[357400960,1744044642572,-500.0,0.00027397,7]
[357400962,1744044642581,-500.0,0.00027397,7]
[357400964,1744044642591,-1619.2,0.00027397,7]
[357400966,1744044642600,-500.0,0.00027397,7]
[357400968,1744044642611,-500.0,0.00027397,7]
[357400970,1744044642621,-507.9,0.00027397,7]
[357400972,1744044642635,-502.81,0.00027397,7]
[357400974,1744044642645,-500.0,0.00027397,7]
[357400976,1744044642655,-500.0,0.00027397,7]
[357400978,1744044642664,-500.0,0.00027397,7]
[357400980,1744044642674,-500.0,0.00027397,7]
[357400982,1744044642684,-500.0,0.00027397,7]
[357400984,1744044642694,-500.0,0.00027397,7]
[357400986,1744044642704,-503.20747007,0.00027397,2]
[357400988,1744044642714,-1000.0,0.00027397,7]
[357400990,1744044642724,-1316.33,0.00027397,7]
[357400992,1744044642734,-1655.22,0.00027397,7]
[357400994,1744044642743,-500.0,0.00027397,7]
[357400996,1744044642753,-820.23,0.00027397,7]
[357400998,1744044642762,-500.0,0.00027397,7]
[357401001,1744044642772,-500.0,0.00027397,7]
[357401003,1744044642782,-578.40598647,0.00027397,7]
[357401005,1744044642791,-1223.76,0.00027397,7]
[357401007,1744044642801,-500.0,0.00027397,7]
[357401010,1744044642812,-500.0,0.00027397,7]
[357401013,1744044642821,-500.0,0.00027397,7]
[357401016,1744044642831,-527.8779858,0.00027397,7]
[357401019,1744044642841,-500.0,0.00027397,7]
[357401021,1744044642851,-500.0,0.00027397,7]
[357401024,1744044642862,-500.0,0.00027397,7]
[357401027,1744044642873,-500.0,0.00027397,7]
[357401031,1744044642882,-500.0,0.00027397,7]
[357401035,1744044642893,-939.04,0.00027397,7]
[357401038,1744044642902,-500.0,0.00027397,7]
[357401041,1744044642912,-185.20281347,0.00027397,7]
[357401044,1744044642923,-500.0,0.00027397,7]
[357401046,1744044642932,-500.0,0.00027397,7]
[357401048,1744044642943,-500.0,0.00027397,7]
[357401051,1744044642953,-500.0,0.00027397,7]
[357401053,1744044642963,-500.0,0.00027397,7]
[357401055,1744044642972,-404.48314287,0.00027397,7]
[357401057,1744044642982,-500.0,0.00027397,7]
[357401059,1744044642992,-500.0,0.00027397,7]
[357401061,1744044643001,-500.0,0.00027397,7]
[357401062,1744044643011,-500.0,0.00027397,7]
[357401063,1744044643021,-500.0,0.00027397,7]
[357401064,1744044643031,-561.15,0.00027397,7]
[357401065,1744044643041,-715.47,0.00027397,7]
[357401066,1744044643050,-500.0,0.00027397,7]
[357401067,1744044643060,-500.0,0.00027397,7]
[357401068,1744044643070,-500.0,0.00027397,7]
[357401069,1744044643080,-500.0,0.00027397,7]
[357401070,1744044643090,-500.0,0.00027397,7]
[357401071,1744044643100,-500.0,0.00027397,7]
[357401072,1744044643109,-1722.91,0.00027397,7]
[357401073,1744044643119,-708.02,0.00027397,7]
[357401074,1744044643131,-940.12,0.00027397,7]
[357401075,1744044643141,-500.0,0.00027397,7]
[357401076,1744044643151,-500.0,0.00027397,7]
[357401077,1744044643160,-500.0,0.00027397,7]
[357401078,1744044643170,-565.79,0.00027397,7]
[357401080,1744044643180,-500.0,0.00027397,7]
[357401082,1744044643190,-500.0,0.00027397,7]
[357401085,1744044643200,-500.61,0.00027397,7]
[357401087,1744044643210,-595.79622551,0.00027397,7]
[357401089,1744044643219,-500.0,0.00027397,7]
[357401091,1744044643229,-780.28,0.00027397,7]
[357401093,1744044643238,-500.0,0.00027397,7]
[357401095,1744044643248,-500.0,0.00027397,7]
[357401097,1744044643258,-430.23434151,0.00027397,7]
[357401099,1744044643267,-500.0,0.00027397,7]
[357401101,1744044643278,-500.0,0.00027397,7]
[357401103,1744044643288,-2848.17,0.00027397,7]
[357401105,1744044643298,-500.0,0.00027397,7]
[357401107,1744044643307,-2186.08,0.00027397,7]
[357401109,1744044643317,-500.0,0.00027397,7]
[357401111,1744044643327,-500.0,0.00027397,7]
[357401113,1744044643337,-500.0,0.00027397,7]
[357401115,1744044643346,-12064.13,0.00027397,7]
[357401117,1744044643357,-563.6,0.00027397,7]
[357401119,1744044643367,-552.3050606,0.00027397,7]
[357401121,1744044643379,-2387.84,0.00027397,7]
[357401123,1744044643389,-500.0,0.00027397,7]
[357401125,1744044643399,-500.0,0.00027397,7]
[357401127,1744044643409,-500.0,0.00027397,7]
[357401129,1744044643418,-500.0,0.00027397,7]
[357401132,1744044643428,-500.0,0.00027397,7]
[357401134,1744044643438,-500.0,0.00027397,7]
[357401136,1744044643448,-647.55,0.00027397,7]
[357401138,1744044643457,-500.0,0.00027397,7]
[357401140,1744044643468,-500.0,0.00027397,7]
[357401142,1744044643478,-500.0,0.00027397,7]
[357401145,1744044643488,-500.0,0.00027397,7]
[357401147,1744044643498,-500.0,0.00027397,7]
[357401149,1744044643507,-500.0,0.00027397,7]
[357401152,1744044643517,-2953.65,0.00027397,7]
[357401155,1744044643527,-500.0,0.00027397,7]
[357401158,1744044643537,-500.0,0.00027397,7]
[357401161,1744044643547,-844.27,0.00027397,7]
[357401168,1744044643595,-500.0,0.00027397,7]
[357401170,1744044643606,-500.0,0.00027397,7]
[357401172,1744044643615,-500.0,0.00027397,7]
[357401174,1744044643626,-500.0,0.00027397,7]
[357401176,1744044643635,-500.0,0.00027397,7]
[357401178,1744044643648,-555.03,0.00027397,7]
[357401180,1744044643657,-804.31,0.00027397,7]
[357401182,1744044643667,-500.0,0.00027397,7]
[357401184,1744044643676,-500.0,0.00027397,7]
[357401185,1744044643686,-1542.59,0.00027397,7]
[357401188,1744044643695,-500.0,0.00027397,7]
[357401189,1744044643704,-500.0,0.00027397,7]
[357401191,1744044643713,-500.0,0.00027397,7]
[357401193,1744044643723,-500.0,0.00027397,7]
[357401195,1744044643732,-500.0,0.00027397,7]
[357401197,1744044643741,-500.0,0.00027397,7]
[357401199,1744044643751,-500.0,0.00027397,7]
[357401201,1744044643760,-500.0,0.00027397,7]
[357401203,1744044643770,-500.0,0.00027397,7]
[357401205,1744044643779,-1521.9,0.00027397,7]
[357401207,1744044643788,-500.0,0.00027397,7]
[357401209,1744044643797,-500.0,0.00027397,7]
[357401211,1744044643807,-500.0,0.00027397,7]
[357401213,1744044643819,-1079.88,0.00027397,7]
[357401215,1744044643828,-500.0,0.00027397,7]
[357401217,1744044643837,-500.0,0.00027397,7]
[357401219,1744044643846,-1523.56,0.00027397,7]
[357401221,1744044643855,-1038.71,0.00027397,7]
[357401223,1744044643864,-500.0,0.00027397,7]
[357401225,1744044643873,-664.61,0.00027397,7]
[357401227,1744044643883,-500.0,0.00027397,7]
[357401229,1744044643892,-931.97,0.00027397,7]
[357401231,1744044643901,-172.54195872,0.00027397,7]
[357401233,1744044643910,-873.21,0.00027397,7]
[357401235,1744044643919,-500.0,0.00027397,7]
[357401237,1744044643928,-500.0,0.00027397,7]
[357401239,1744044643937,-500.0,0.00027397,7]
[357401241,1744044643946,-803.19,0.00027397,7]
[357401243,1744044643955,-500.0,0.00027397,7]
[357401245,1744044643965,-500.0,0.00027397,7]
[357401247,1744044643974,-500.0,0.00027397,7]
[357401249,1744044643983,-655.49,0.00027397,7]
[357401251,1744044643993,-529.02,0.00027397,7]
[357401253,1744044644002,-500.0,0.00027397,7]
[357401255,1744044644011,-1076.68,0.00027397,7]
[357401257,1744044644022,-500.0,0.00027397,7]
[357401259,1744044644033,-741.14,0.00027397,7]
[357401261,1744044644042,-500.0,0.00027397,7]
[357401263,1744044644052,-500.0,0.00027397,7]
[357401265,1744044644062,-3192.88,0.00027397,7]
[357401267,1744044644071,-843.43,0.00027397,7]
[357401269,1744044644081,-500.0,0.00027397,7]
[357401271,1744044644090,-560.74,0.00027397,7]
[357401273,1744044644099,-628.43,0.00027397,7]
[357401275,1744044644109,-500.0,0.00027397,7]
[357401277,1744044644118,-503.93,0.00027397,7]
[357401279,1744044644128,-566.32,0.00027397,7]
[357401281,1744044644138,-500.0,0.00027397,3]
[357401283,1744044644147,-1607.4,0.00027397,7]
[357401285,1744044644157,-3422.1,0.00027397,7]
[357401287,1744044644167,-500.0,0.00027397,7]
[357401289,1744044644177,-500.0,0.00027397,7]
[357401291,1744044644186,-500.0,0.00027397,7]
[357401293,1744044644196,-500.0,0.00027397,7]
[357401296,1744044644206,-500.0,0.00027397,7]
[357401298,1744044644215,-500.0,0.00027397,7]
[357401300,1744044644225,-2550.74,0.00027397,7]
[357401302,1744044644235,-500.0,0.00027397,7]
[357401304,1744044644244,-759.95,0.00027397,7]
[357401306,1744044644254,-10731.93,0.00027397,7]
[357401308,1744044644263,-500.0,0.00027397,7]
[357401310,1744044644272,-4508.38,0.00027397,7]
[357401312,1744044644281,-500.0,0.00027397,7]
[357401314,1744044644290,-500.0,0.00027397,7]
[357401316,1744044644299,-500.0,0.00027397,7]
[357401318,1744044644308,-535.49,0.00027397,7]
[357401320,1744044644317,-500.0,0.00027397,7]
[357401322,1744044644326,-2414.72,0.00027397,7]
[357401324,1744044644335,-603.92,0.00027397,7]
[357401326,1744044644345,-500.0,0.00027397,7]
[357401328,1744044644354,-500.0,0.00027397,7]
[357401330,1744044644363,-377.2187649,0.00027397,7]
[357401332,1744044644372,-500.0,0.00027397,7]
[357401334,1744044644381,-617.33821747,0.00027397,7]
[357401336,1744044644390,-1441.86,0.00027397,7]
[357401337,1744044644399,-500.0,0.00027397,7]
[357401339,1744044644409,-500.0,0.00027397,7]
[357401341,1744044644418,-500.0,0.00027397,7]
[357401343,1744044644427,-500.0,0.00027397,7]
[357401345,1744044644436,-500.0,0.00027397,7]
[357401348,1744044644446,-500.0,0.00027397,7]
[357401350,1744044644455,-500.0,0.00027397,7]
[357401352,1744044644465,-500.0,0.00027397,7]
[357401353,1744044644474,-500.0,0.00027397,7]
[357401355,1744044644483,-500.0,0.00027397,7]
[357401357,1744044644492,-500.0,0.00027397,7]
[357401359,1744044644503,-500.0,0.00027397,7]
[357401361,1744044644512,-1357.69,0.00027397,7]
[357401363,1744044644521,-800.65,0.00027397,7]
[357401365,1744044644531,-500.0,0.00027397,7]
[357401368,1744044644542,-500.0,0.00027397,7]
[357401370,1744044644551,-2393.3,0.00027397,7]
[357401372,1744044644560,-573.65454895,0.00027397,7]
[357401373,1744044644569,-500.0,0.00027397,7]
[357401375,1744044644579,-3166.3,0.00027397,7]
[357401378,1744044644589,-500.0,0.00027397,7]
[357401380,1744044644599,-500.0,0.00027397,7]
[357401382,1744044644610,-500.0,0.00027397,7]
[357401384,1744044644620,-504.71682295,0.00027397,7]
[357401386,1744044644633,-500.0,0.00027397,7]
[357401388,1744044644648,-500.0,0.00027397,7]
[357401390,1744044644658,-1903.23,0.00027397,7]
[357401391,1744044644667,-502.82,0.00027397,7]
[357401393,1744044644678,-500.0,0.00027397,7]
[357401395,1744044644687,-500.0,0.00027397,7]
[357401397,1744044644698,-500.0,0.00027397,7]
[357401400,1744044644708,-500.0,0.00027397,7]
[357401401,1744044644720,-548.98,0.00027397,7]
[357401404,1744044644730,-471.22299166,0.00027397,7]
[357401406,1744044644740,-500.0,0.00027397,7]
[357401408,1744044644750,-719.2,0.00027397,7]
[357401410,1744044644759,-547.0,0.00027397,7]
[357401412,1744044644769,-951.42,0.00027397,7]
[357401414,1744044644778,-474.34403763,0.00027397,7]
[357401416,1744044644787,-500.0,0.00027397,7]
[357401418,1744044644796,-747.31,0.00027397,7]
[357401419,1744044644805,-200.0,0.00027397,7]
[357401422,1744044644815,-500.0,0.00027397,7]
[357401423,1744044644825,-500.0,0.00027397,7]
[357401425,1744044644835,-500.0,0.00027397,7]
[357401427,1744044644845,-2976.05,0.00027397,7]
[357401429,1744044644855,-500.0,0.00027397,7]
[357401431,1744044644865,-500.0,0.00027397,7]
[357401434,1744044644875,-500.0,0.00027397,7]
[357401436,1744044644885,-500.0,0.00027397,7]
[357401438,1744044644894,-500.0,0.00027397,7]
[357401440,1744044644904,-500.0,0.00027397,7]
[357401442,1744044644913,-500.0,0.00027397,7]
[357401444,1744044644922,-2485.43,0.00027397,7]
[357401446,1744044644932,-500.0,0.00027397,7]
[357401448,1744044644941,-500.0,0.00027397,7]
[357401450,1744044644951,-500.0,0.00027397,7]
[357401452,1744044644959,-500.0,0.00027397,7]
[357401454,1744044644969,-542.39,0.00027397,7]
[357401456,1744044644979,-834.75,0.00027397,7]
[357401458,1744044644988,-500.0,0.00027397,7]
[357401460,1744044644997,-500.0,0.00027397,7]
[357401462,1744044645007,-538.31,0.00027397,7]
[357401464,1744044645016,-500.0,0.00027397,7]
[357401466,1744044645026,-500.0,0.00027397,7]
[357401468,1744044645036,-500.0,0.00027397,7]
[357401470,1744044645045,-500.0,0.00027397,7]
[357401472,1744044645057,-620.02,0.00027397,7]
[357401474,1744044645067,-500.0,0.00027397,7]
[357401476,1744044645077,-1147.08,0.00027397,7]
[357401478,1744044645086,-500.0,0.00027397,7]
[357401480,1744044645095,-909.34,0.00027397,7]
[357401482,1744044645104,-500.0,0.00027397,7]
[357401484,1744044645113,-547.96,0.00027397,7]
[357401486,1744044645122,-783.73948285,0.00027397,7]
[357401488,1744044645133,-1293.79,0.00027397,7]
[357401490,1744044645142,-500.0,0.00027397,7]
[357401491,1744044645151,-500.0,0.00027397,7]
[357401493,1744044645160,-561.57,0.00027397,7]
[357401495,1744044645170,-500.0,0.00027397,7]
[357401497,1744044645180,-500.0,0.00027397,7]
[357401500,1744044645190,-500.0,0.00027397,7]
[357401502,1744044645199,-1416.61,0.00027397,7]
[357401503,1744044645209,-500.0,0.00027397,7]
[357401506,1744044645219,-4483.8,0.00027397,7]
[357401508,1744044645228,-500.0,0.00027397,7]
[357401510,1744044645237,-500.0,0.00027397,7]
[357401512,1744044645247,-516.67100061,0.00027397,7]
[357401513,1744044645256,-2655.44,0.00027397,7]
[357401515,1744044645265,-3031.77,0.00027397,7]
[357401517,1744044645274,-1464.94,0.00027397,7]
[357401519,1744044645284,-500.0,0.00027397,7]
[357401521,1744044645294,-500.0,0.00027397,7]
[357401523,1744044645304,-500.0,0.00027397,7]
[357401526,1744044645314,-500.0,0.00027397,7]
[357401528,1744044645323,-2190.06,0.00027397,7]
[357401530,1744044645332,-872.03,0.00027397,7]
[357401531,1744044645342,-500.0,0.00027397,7]
[357401534,1744044645351,-280.34696185,0.00027397,7]
[357401536,1744044645361,-500.0,0.00027397,7]
[357401538,1744044645370,-500.0,0.00027397,7]
[357401540,1744044645383,-669.99,0.00027397,7]
[357401542,1744044645392,-466.65148207,0.00027397,7]
[357401544,1744044645402,-894.18,0.00027397,7]